fUST/lending_fUST_20250801
["ID","MTS","AMOUNT","RATE_DAILY","PERIOD"]
[376570130,1754027449680,-841.53699354,0.00022032,2]
[376570131,1754027449689,-151.0,0.00022036,7]
[376570132,1754027449699,-460.0,0.00022036,2]
[376570133,1754027449708,-588.28254957,0.00022036,2]
[376570134,1754027449718,-588.68,0.00022036,2]
[376570135,1754027449727,-151.0,0.00022038,7]
[376570136,1754027449813,-469.7815409,0.00022038,2]
[376570137,1754027449822,-460.0,0.00022038,2]
[376570138,1754027449832,-1356.94,0.00022039,2]
[376570139,1754027449842,-460.0,0.00022039,2]
[376570140,1754027449851,-160.0,0.00022053,2]
[376570141,1754027449860,-153.297077,0.00022124,7]
[376570142,1754027449870,-151.0,0.00022124,7]
[376570143,1754027449879,-151.0,0.00022124,7]
[376570144,1754027449889,-324.726079,0.00022124,7]
[376570145,1754027449898,-324.726079,0.00022124,7]
[376570146,1754027449908,-300.0,0.00022164,2]
[376570147,1754027449917,-460.0,0.00022191,2]
[376570148,1754027449927,-460.0,0.00022191,2]
[376570149,1754027449936,-883.16,0.00022191,2]
[376570150,1754027449945,-461.92,0.00022191,2]
[376570151,1754027449953,-524.85,0.00022191,2]
[376570152,1754027449962,-1405.28,0.00022191,2]
[376570153,1754027449971,-164.71,0.00022191,2]
[376570154,1754027449981,-1037.44,0.00022191,2]
[376570155,1754027449990,-460.0,0.00022213,2]
[376570156,1754027449999,-460.0,0.00022216,2]
[376570157,1754027450009,-841.05,0.00022273,2]
[376570158,1754027450018,-775.23,0.00022273,2]
[376570159,1754027450028,-549.67,0.00022273,2]
[376570160,1754027450037,-698.76,0.00022273,2]
[376570161,1754027450047,-460.0,0.0002228,2]
[376570162,1754027450056,-460.0,0.0002228,2]
[376570163,1754027450066,-588.68,0.0002231,2]
[376570164,1754027450076,-1356.94,0.00022313,2]
[376570165,1754027450086,-460.0,0.00022313,2]
[376570166,1754027450095,-1192.23511246,0.00022368,2]
[376570167,1754027450104,-153.0,0.00022411,2]
[376570168,1754027450114,-306.0,0.00022411,2]
[376570169,1754027450123,-578.4830312,0.00022411,2]
[376570170,1754027450133,-578.4830312,0.00022411,2]
[376570171,1754027450142,-578.4830312,0.00022411,2]
[376570172,1754027450152,-460.0,0.00022465,2]
[376570173,1754027450161,-583.41988554,0.00022465,2]
[376570174,1754027450171,-883.16,0.00022465,2]
[376570175,1754027450180,-461.92,0.00022465,2]
[376570176,1754027450189,-524.85,0.00022465,2]
[376570177,1754027450199,-1405.28,0.00022465,2]
[376570178,1754027450208,-1037.44,0.00022465,2]
[376570179,1754027450218,-383.88584028,0.00022466,2]
[376570180,1754027450228,-154.994934,0.00022476,4]
[376570181,1754027450237,-460.0,0.00022487,2]
[376570182,1754027450246,-256.43,0.000225,2]
[376570183,1754027450256,-154.994934,0.00022511,6]
[376570184,1754027450269,-354.23840851,0.00022534,2]
[376570185,1754027450279,-399.73520824,0.00022534,2]
[376570186,1754027450289,-999.0,0.00022546,4]
[376570187,1754027450298,-841.05,0.00022547,2]
[376570188,1754027450310,-775.23,0.00022547,2]
[376570189,1754027450319,-549.67,0.00022547,2]
[376570190,1754027450329,-500.0,0.00022547,2]
[376570191,1754027450340,-698.76,0.00022547,2]
[376570192,1754027450350,-460.0,0.00022554,2]
[376570193,1754027450359,-460.0,0.00022554,2]
[376570194,1754027450369,-588.68,0.00022584,2]
[376570195,1754027450379,-1356.94,0.00022587,2]
[376570196,1754027450388,-460.0,0.00022587,2]
[376570197,1754027450397,-151.0,0.000226,10]
[376570198,1754027450408,-187.826037,0.00022603,2]
[376570199,1754027450418,-154.994934,0.00022625,2]
[376570200,1754027450430,-539.0,0.00022641,2]
[376570201,1754027450439,-539.0,0.00022655,2]
[376570202,1754027450448,-185.08002,0.00022739,7]
[376570203,1754027450458,-161.120204,0.00022739,7]
[376570204,1754027450467,-247.44,0.00022739,2]
[376570205,1754027450477,-151.0,0.00022739,7]
[376570206,1754027450487,-883.16,0.00022739,2]
[376570207,1754027450497,-461.92,0.00022739,2]
[376570208,1754027450506,-524.85,0.00022739,2]
[376570209,1754027450516,-1405.28,0.00022739,2]
[376570210,1754027450527,-1037.44,0.00022739,2]
[376570211,1754027450536,-460.0,0.00022761,2]
[376570212,1754027450546,-560.0,0.00022764,2]
[376570213,1754027450556,-10225.20845717,0.00022773,2]
[376570214,1754027450567,-587.0,0.00022776,2]
[376570215,1754027450576,-841.05,0.00022821,2]
[376570216,1754027450585,-775.23,0.00022821,2]
[376570217,1754027450595,-549.67,0.00022821,2]
[376570218,1754027450604,-698.76,0.00022821,2]
[376570219,1754027450613,-460.0,0.00022828,2]
[376570220,1754027450623,-460.0,0.00022828,2]
[376570221,1754027450632,-251.26850866,0.00022835,2]
[376570222,1754027450641,-157.323913,0.00022858,7]
[376570223,1754027450651,-157.323913,0.00022858,7]
[376570224,1754027450661,-588.68,0.00022858,2]
[376570225,1754027450671,-151.0,0.00022859,7]
[376570226,1754027450683,-151.318924,0.00022859,7]
[376570227,1754027450692,-151.0,0.00022859,7]
[376570228,1754027450700,-153.371406,0.00022859,7]
[376570229,1754027450710,-151.0,0.00022859,7]
[376570230,1754027450721,-500.0,0.0002286,2]
[376570231,1754027450733,-1356.94,0.00022861,2]
[376570232,1754027450743,-460.0,0.00022861,2]
[376570233,1754027450753,-824.0336963,0.000229,7]
[376570234,1754027450762,-539.0,0.00022911,2]
[376570235,1754027450772,-154.994934,0.00022917,6]
[376570236,1754027450781,-154.994934,0.00022933,4]
[376570237,1754027450790,-151.0,0.0002299,7]
[376570238,1754027450799,-151.0,0.0002299,7]
[376570239,1754027450809,-151.0,0.0002299,7]
[376570240,1754027450818,-883.16,0.00023013,2]
[376570241,1754027450827,-461.92,0.00023013,2]
[376570242,1754027450836,-524.85,0.00023013,2]
[376570243,1754027450846,-1405.28,0.00023013,2]
[376570244,1754027450856,-1037.44,0.00023013,2]
[376570245,1754027450866,-460.0,0.00023035,2]
[376570246,1754027450876,-841.05,0.00023095,2]
[376570247,1754027450885,-775.23,0.00023095,2]
[376570248,1754027450894,-549.67,0.00023095,2]
[376570249,1754027450903,-698.76,0.00023095,2]
[376570250,1754027450912,-460.0,0.00023102,2]
[376570251,1754027450921,-168.0,0.00023108,2]
[376570252,1754027450932,-588.68,0.00023132,2]
[376570253,1754027450941,-1356.94,0.00023135,2]
[376570254,1754027450951,-460.0,0.00023135,2]
[376570255,1754027450961,-168.0,0.00023174,2]
[376570256,1754027450971,-154.994934,0.00023182,7]
[376570257,1754027450980,-154.994934,0.00023198,2]
[376570258,1754027450989,-2911.81,0.000232,7]
[376570259,1754027450998,-151.0,0.000232,7]
[376570260,1754027451007,-192.8589024,0.00023279,2]
[376570261,1754027451016,-168.0,0.00023279,2]
[376570262,1754027451025,-500.0,0.00023286,2]
[376570263,1754027451034,-500.0,0.00023287,2]
[376570264,1754027451044,-883.16,0.00023287,2]
[376570265,1754027451053,-461.92,0.00023287,2]
[376570266,1754027451063,-524.85,0.00023287,2]
[376570267,1754027451072,-1405.28,0.00023287,2]
[376570268,1754027451081,-1037.44,0.00023287,2]
[376570269,1754027451091,-31355.86,0.000233,2]
[376570270,1754027451100,-1185.85,0.00023307,2]
[376570271,1754027451109,-460.0,0.00023309,2]
[376570272,1754027451119,-660.0,0.00023312,2]
[376570273,1754027451128,-154.994934,0.00023323,6]
[376570274,1754027451137,-841.05,0.00023369,2]
[376570275,1754027451146,-775.23,0.00023369,2]
[376570276,1754027451156,-549.67,0.00023369,2]
[376570277,1754027451166,-698.76,0.00023369,2]
[376570278,1754027451177,-460.0,0.00023376,2]
[376570279,1754027451187,-154.994934,0.00023391,4]
[376570280,1754027451195,-151.0,0.00023406,7]
[376570281,1754027451205,-588.68,0.00023406,2]
[376570282,1754027451214,-151.0,0.00023407,7]
[376570283,1754027451223,-152.231311,0.00023407,7]
[376570284,1754027451233,-151.0,0.00023407,7]
[376570285,1754027451243,-151.0,0.00023407,7]
[376570286,1754027451252,-151.0,0.00023408,7]
[376570287,1754027451266,-288.199885,0.00023408,7]
[376570288,1754027451275,-324.726079,0.00023408,7]
[376570289,1754027451284,-324.726079,0.00023408,7]
[376570290,1754027451293,-1356.94,0.00023409,2]
[376570291,1754027451304,-460.0,0.00023409,2]
[376570292,1754027451313,-2146.0,0.00023422,2]
[376570293,1754027451322,-513.281,0.00023422,2]
[376570294,1754027451331,-427.773,0.00023422,2]
[376570295,1754027451341,-970.0,0.00023422,2]
[376570296,1754027451350,-154.994934,0.00023552,7]
[376570297,1754027451359,-883.16,0.00023561,2]
[376570298,1754027451368,-461.92,0.00023561,2]
[376570299,1754027451378,-524.85,0.00023561,2]
[376570300,1754027451387,-1405.28,0.00023561,2]
[376570301,1754027451396,-1037.44,0.00023561,2]
[376570302,1754027451405,-460.0,0.00023583,2]
[376570303,1754027451415,-200.0,0.00023584,15]
[376570304,1754027451426,-200.0,0.00023584,15]
[376570305,1754027451435,-200.0,0.00023584,15]
[376570306,1754027451444,-200.0,0.00023584,15]
[376570307,1754027451453,-200.0,0.00023584,15]
[376570308,1754027451462,-200.0,0.00023584,15]
[376570309,1754027451471,-366.0,0.00023584,15]
[376570310,1754027451554,-160.0,0.000236,7]
[376570311,1754027451564,-157.323913,0.000236,7]
[376570312,1754027451573,-157.323913,0.000236,7]
[376570313,1754027451582,-841.05,0.00023643,2]
[376570314,1754027451591,-775.23,0.00023643,2]
[376570315,1754027451600,-549.67,0.00023643,2]
[376570316,1754027451609,-698.76,0.00023643,2]
[376570317,1754027451619,-460.0,0.0002365,2]
[376570318,1754027451628,-423.99743599,0.00023678,2]
[376570319,1754027451638,-588.68,0.0002368,2]
[376570320,1754027451647,-1356.94,0.00023683,2]
[376570321,1754027451656,-460.0,0.00023683,2]
[376570322,1754027451665,-430.2201461,0.00023699,2]
[376570323,1754027451675,-856.6894776,0.00023699,2]
[376570324,1754027451685,-430.3749276,0.00023699,2]
[376570325,1754027451695,-429.9105831,0.00023699,2]
[376570326,1754027451704,-151.0,0.00023712,7]
[376570327,1754027451713,-151.0,0.00023712,7]
[376570328,1754027451722,-243.582959,0.00023712,7]
[376570329,1754027451731,-177.83974,0.00023712,7]
[376570330,1754027451740,-539.0,0.00023745,2]
[376570331,1754027451749,-168.0,0.00023746,2]
[376570332,1754027451759,-154.994934,0.00023771,2]
[376570333,1754027451768,-151.0,0.0002381,7]
[376570334,1754027451777,-151.0,0.0002381,7]
[376570335,1754027451787,-151.0,0.0002381,7]
[376570336,1754027451796,-151.0,0.0002381,7]
[376570337,1754027451805,-151.0,0.0002381,7]
[376570338,1754027451814,-151.0,0.0002381,7]
[376570339,1754027451823,-151.0,0.0002381,7]
[376570340,1754027451833,-151.0,0.0002381,7]
[376570341,1754027451842,-151.0,0.0002381,7]
[376570342,1754027451851,-151.0,0.0002381,7]
[376570343,1754027451861,-256.985558,0.0002381,7]
[376570344,1754027451870,-151.0,0.0002381,7]
[376570345,1754027451880,-151.0,0.0002381,7]
[376570346,1754027451889,-157.323913,0.0002381,7]
[376570347,1754027451899,-157.323913,0.0002381,7]
[376570348,1754027451908,-324.726079,0.0002381,7]
[376570349,1754027451917,-324.726079,0.0002381,7]
[376570350,1754027451928,-81702.56598738,0.0002381,2]
[376570351,1754027451937,-151.0,0.00023819,7]
[376570352,1754027451946,-883.16,0.00023835,2]
[376570353,1754027451955,-461.92,0.00023835,2]
[376570354,1754027451964,-524.85,0.00023835,2]
[376570355,1754027451974,-1405.28,0.00023835,2]
[376570356,1754027451984,-1037.44,0.00023835,2]
[376570357,1754027451993,-151.0,0.00023845,7]
[376570358,1754027452003,-151.0,0.00023845,7]
[376570359,1754027452012,-151.0,0.00023845,7]
[376570360,1754027452022,-670.11,0.00023845,7]
[376570361,1754027452032,-460.0,0.00023857,2]
[376570362,1754027452041,-760.0,0.0002386,2]
[376570363,1754027452051,-539.0,0.00023895,2]
[376570364,1754027452060,-9153.93,0.000239,7]
[376570365,1754027452071,-501.30294236,0.00023902,9]
[376570366,1754027452080,-841.05,0.00023917,2]
[376570367,1754027452090,-775.23,0.00023917,2]
[376570368,1754027452099,-549.67,0.00023917,2]
[376570369,1754027452109,-698.76,0.00023917,2]
[376570370,1754027452119,-154.994934,0.00023922,7]
[376570371,1754027452128,-460.0,0.00023924,2]
[376570372,1754027452138,-151.0,0.00023929,2]
[376570373,1754027452148,-151.0,0.00023929,2]
[376570374,1754027452157,-152.07603427,0.00023929,2]
[376570375,1754027452167,-151.33662545,0.00023929,2]
[376570376,1754027452176,-151.0,0.00023929,2]
[376570377,1754027452186,-151.63543891,0.00023929,2]
[376570378,1754027452196,-199.51544049,0.00023929,2]
[376570379,1754027452205,-151.0,0.00023929,2]
[376570380,1754027452215,-151.0,0.00023929,2]
[376570381,1754027452225,-151.41538642,0.00023929,2]
[376570382,1754027452235,-151.59333615,0.00023929,2]
[376570383,1754027452244,-151.0,0.00023929,2]
[376570384,1754027452254,-151.0,0.00023929,2]
[376570385,1754027452267,-151.0,0.00023929,2]
[376570386,1754027452277,-151.0,0.00023929,2]
[376570387,1754027452286,-151.0,0.00023929,2]
[376570388,1754027452296,-513.0,0.00023929,2]
[376570389,1754027452306,-151.0,0.00023929,2]
[376570390,1754027452315,-241.66024965,0.00023929,2]
[376570391,1754027452324,-151.63516083,0.00023929,2]
[376570392,1754027452334,-151.0,0.00023929,2]
[376570393,1754027452344,-151.0,0.00023929,2]
[376570394,1754027452353,-151.0,0.00023929,2]
[376570395,1754027452363,-151.0,0.00023929,2]
[376570396,1754027452372,-151.0,0.00023929,2]
[376570397,1754027452381,-670.11,0.00023945,7]
[376570398,1754027452390,-588.68,0.00023954,2]
[376570399,1754027452399,-1356.94,0.00023957,2]
[376570400,1754027452408,-460.0,0.00023957,2]
[376570401,1754027452418,-1487.38313033,0.00024,2]
[376570402,1754027452427,-160.0,0.00024,7]
[376570403,1754027452437,-1756.0,0.00024,3]
[376570404,1754027452446,-1756.0,0.00024,3]
[376570405,1754027452455,-1049.20570173,0.00024,3]
[376570406,1754027452464,-160.0,0.00024,3]
[376570407,1754027452473,-161.8948577,0.00024,3]
[376570408,1754027452483,-1756.0,0.00024,3]
[376570409,1754027452493,-1756.0,0.00024,3]
[376570410,1754027452502,-1756.0,0.00024,3]
[376570411,1754027452511,-1756.0,0.00024,3]
[376570412,1754027452521,-160.0,0.00024,3]
[376570413,1754027452530,-841.53699354,0.00024,3]
[376570414,1754027452539,-12630.20147472,0.00024,3]
[376570415,1754027452549,-238.0,0.00024023,2]
[376570416,1754027452558,-539.0,0.00024041,2]
[376570417,1754027452567,-564.65,0.00024042,7]
[376570418,1754027452577,-151.0,0.000241,6]
[376570419,1754027452586,-883.16,0.00024109,2]
[376570420,1754027452595,-461.92,0.00024109,2]
[376570421,1754027452604,-524.85,0.00024109,2]
[376570422,1754027452613,-1405.28,0.00024109,2]
[376570423,1754027452623,-1037.44,0.00024109,2]
[376570424,1754027452632,-168.17756401,0.0002411,2]
[376570425,1754027452641,-982.9834366,0.0002411,2]
[376570426,1754027452651,-811.35,0.00024123,2]
[376570427,1754027452661,-2200.0,0.00024123,2]
[376570428,1754027452670,-168.0,0.00024127,2]
[376570429,1754027452684,-460.0,0.00024131,2]
[376570430,1754027452693,-564.65,0.00024142,7]
[376570431,1754027452702,-168.0,0.0002418,2]
[376570432,1754027452713,-841.05,0.00024191,2]
[376570433,1754027452723,-775.23,0.00024191,2]
[376570434,1754027452733,-549.67,0.00024191,2]
[376570435,1754027452742,-698.76,0.00024191,2]
[376570436,1754027452751,-460.0,0.00024198,2]
[376570437,1754027452760,-1725.23,0.000242,7]
[376570438,1754027452769,-151.0,0.00024203,2]
[376570439,1754027452778,-151.0,0.00024203,2]
[376570440,1754027452788,-151.94558431,0.00024203,2]
[376570441,1754027452797,-152.19390297,0.00024203,2]
[376570442,1754027452806,-151.0,0.00024203,2]
[376570443,1754027452815,-151.55838376,0.00024203,2]
[376570444,1754027452825,-151.0,0.00024203,2]
[376570445,1754027452835,-513.0,0.00024203,2]
[376570446,1754027452844,-151.0,0.00024203,2]
[376570447,1754027452854,-151.0,0.00024203,2]
[376570448,1754027452863,-151.0,0.00024203,2]
[376570449,1754027452872,-588.68,0.00024228,2]
[376570450,1754027452882,-1356.94,0.00024231,2]
[376570451,1754027452890,-460.0,0.00024231,2]
[376570452,1754027452900,-564.65,0.00024242,7]
[376570453,1754027452909,-564.65,0.00024342,7]
[376570454,1754027452921,-883.16,0.00024383,2]
[376570455,1754027452931,-461.92,0.00024383,2]
[376570456,1754027452941,-524.85,0.00024383,2]
[376570457,1754027452950,-1405.28,0.00024383,2]
[376570458,1754027452959,-1037.44,0.00024383,2]
[376570459,1754027452968,-460.0,0.00024405,2]
[376570460,1754027452980,-860.0,0.00024408,2]
[376570461,1754027452989,-564.69,0.00024442,7]
[376570462,1754027452999,-168.0,0.00024464,2]
[376570463,1754027453008,-841.05,0.00024465,2]
[376570464,1754027453018,-775.23,0.00024465,2]
[376570465,1754027453028,-549.67,0.00024465,2]
[376570466,1754027453037,-698.76,0.00024465,2]
[376570467,1754027453047,-460.0,0.00024472,2]
[376570468,1754027453056,-151.0,0.00024477,2]
[376570469,1754027453066,-151.0,0.00024477,2]
[376570470,1754027453144,-151.0,0.00024477,2]
[376570471,1754027453160,-513.0,0.00024477,2]
[376570472,1754027453170,-151.0,0.00024477,2]
[376570473,1754027453180,-151.0,0.00024477,2]
[376570474,1754027453190,-151.0,0.00024477,7]
[376570475,1754027453198,-157.323913,0.00024477,7]
[376570476,1754027453208,-157.323913,0.00024477,7]
[376570477,1754027453217,-2008.07494245,0.000245,3]
[376570478,1754027453227,-2911.81,0.000245,7]
[376570479,1754027453236,-588.68,0.00024502,2]
[376570480,1754027453246,-151.0,0.00024503,7]
[376570481,1754027453255,-151.0,0.00024503,7]
[376570482,1754027453267,-324.726079,0.00024503,7]
[376570483,1754027453277,-324.726079,0.00024503,7]
[376570484,1754027453286,-1356.94,0.00024505,2]
[376570485,1754027453295,-460.0,0.00024505,2]
[376570486,1754027453305,-151.467703,0.00024559,7]
[376570487,1754027453315,-151.0,0.00024559,7]
[376570488,1754027453324,-151.0,0.00024559,7]
[376570489,1754027453333,-151.0,0.000246,9]
[376570490,1754027453345,-31355.86,0.000246,2]
[376570491,1754027453355,-1185.85,0.00024613,2]
[376570492,1754027453364,-883.16,0.00024657,2]
[376570493,1754027453374,-461.92,0.00024657,2]
[376570494,1754027453383,-524.85,0.00024657,2]
[376570495,1754027453393,-1405.28,0.00024657,2]
[376570496,1754027453402,-1037.44,0.00024657,2]
[376570497,1754027453411,-430.3749276,0.00024658,2]
[376570498,1754027453420,-430.3749276,0.00024658,2]
[376570499,1754027453430,-430.3749276,0.00024658,2]
[376570500,1754027453439,-430.3749276,0.00024658,2]
[376570501,1754027453448,-430.3749276,0.00024658,2]
[376570502,1754027453457,-430.3749276,0.00024658,2]
[376570503,1754027453466,-430.3749276,0.00024658,2]
[376570504,1754027453476,-430.3749276,0.00024658,2]
[376570505,1754027453486,-430.3749276,0.00024658,2]
[376570506,1754027453495,-430.3749276,0.00024658,2]
[376570507,1754027453504,-441.1428801,0.00024658,2]
[376570508,1754027453514,-200.0,0.00024658,15]
[376570509,1754027453523,-151.0,0.00024658,7]
[376570510,1754027453532,-151.0,0.00024658,7]
[376570511,1754027453541,-151.0,0.00024658,7]
[376570512,1754027453550,-500.0,0.00024658,2]
[376570513,1754027453560,-460.0,0.00024679,2]
[376570514,1754027453569,-841.05,0.00024739,2]
[376570515,1754027453578,-775.23,0.00024739,2]
[376570516,1754027453589,-549.67,0.00024739,2]
[376570517,1754027453599,-698.76,0.00024739,2]
[376570518,1754027453607,-460.0,0.00024746,2]
[376570519,1754027453617,-198.0,0.00024751,2]
[376570520,1754027453625,-152.59805949,0.00024751,2]
[376570521,1754027453635,-198.0,0.00024751,2]
[376570522,1754027453645,-513.0,0.00024751,2]
[376570523,1754027453655,-198.0,0.00024751,2]
[376570524,1754027453664,-198.0,0.00024751,2]
[376570525,1754027453674,-151.0,0.00024751,7]
[376570526,1754027453684,-151.0,0.00024751,7]
[376570527,1754027453693,-151.0,0.00024751,7]
[376570528,1754027453703,-151.0,0.00024751,7]
[376570529,1754027453713,-151.0,0.00024751,7]
[376570530,1754027453722,-588.68,0.00024776,2]
[376570531,1754027453731,-151.0,0.00024778,7]
[376570532,1754027453741,-151.0,0.00024778,7]
[376570533,1754027453750,-151.0,0.00024779,7]
[376570534,1754027453759,-1356.94,0.00024779,2]
[376570535,1754027453768,-460.0,0.00024779,2]
[376570536,1754027453778,-7072.45130978,0.000248,7]
[376570537,1754027453788,-809.69403256,0.000248,2]
[376570538,1754027453797,-823.0,0.00024821,2]
[376570539,1754027453807,-1517.77160954,0.00024831,2]
[376570540,1754027453817,-154.994934,0.00024883,20]
[376570541,1754027453826,-202.68736873,0.00024899,2]
[376570542,1754027453835,-156.788113,0.000249,7]
[376570543,1754027453845,-156.788113,0.000249,7]
[376570544,1754027453855,-151.548665,0.000249,7]
[376570545,1754027453864,-151.0,0.000249,7]
[376570546,1754027453874,-151.0,0.000249,7]
[376570547,1754027453884,-151.0,0.000249,7]
[376570548,1754027453893,-151.0,0.000249,7]
[376570549,1754027453903,-151.0,0.000249,7]
[376570550,1754027453912,-151.0,0.000249,7]
[376570551,1754027453921,-151.0,0.000249,7]
[376570552,1754027453932,-151.0,0.000249,7]
[376570553,1754027453941,-151.0,0.000249,7]
[376570554,1754027453950,-151.0,0.000249,7]
[376570555,1754027453959,-151.0,0.000249,7]
[376570556,1754027453968,-151.0,0.000249,7]
[376570557,1754027453978,-151.0,0.000249,7]
[376570558,1754027453987,-151.0,0.000249,7]
[376570559,1754027453996,-151.0,0.000249,7]
[376570560,1754027454005,-151.0,0.000249,7]
[376570561,1754027454014,-151.0,0.000249,7]
[376570562,1754027454023,-157.323913,0.000249,7]
[376570563,1754027454033,-157.323907,0.000249,7]
[376570564,1754027454043,-324.726079,0.000249,7]
[376570565,1754027454051,-324.726079,0.000249,7]
[376570566,1754027454061,-185411.65009582,0.000249,2]
[376570567,1754027454585,-1128.37168894,0.000249,2]
[376570568,1754027454597,-648.9424968,0.000249,2]
[376570569,1754027454803,-455.07253822,0.00019178,2]
[376570570,1754027454813,-460.0,0.00019178,2]
[376570571,1754027454822,-447.00348178,0.00019178,2]
[376570572,1754027455056,-15.6943864,0.00019178,2]
[376570573,1754027455066,-460.0,0.00019452,2]
[376570574,1754027455076,-578.4830312,0.00022411,2]
[376570575,1754027455085,-3753.58746995,0.000249,2]
[376570576,1754027455097,-337.45999967,0.000249,2]
[376570599,1754027791773,321.6357761,0.00018246,2]
[376570601,1754027812985,4975.39508046,0.00026845,120]
[376570604,1754027909040,227.77926132,0.00018603,2]
[376570611,1754028062954,150.00259396,0.00019,30]
[376570612,1754028087921,1000.0,0.00018177,2]
[376570613,1754028162725,-373.71455548,0.00019078,2]
[376570614,1754028163249,-160.0,0.0001917,2]
[376570615,1754028163272,-1200.0,0.00019172,2]
[376570616,1754028163294,-238.0,0.00019176,2]
[376570617,1754028163315,-255.15713374,0.00019177,2]
[376570618,1754028163337,-300.0,0.00019177,2]
[376570619,1754028163360,-150.1342165,0.00019178,2]
[376570620,1754028163381,-460.0,0.00019178,2]
[376570621,1754028163403,-460.0,0.00019178,2]
[376570622,1754028163428,-460.0,0.00019178,2]
[376570623,1754028163451,-460.0,0.00019178,2]
[376570624,1754028163474,-460.0,0.00019178,2]
[376570625,1754028163496,-548.69697489,0.00019178,2]
[376570626,1754028163519,-460.0,0.00019178,2]
[376570627,1754028163547,-460.0,0.00019178,2]
[376570628,1754028163575,-460.0,0.00019178,2]
[376570629,1754028163596,-545.13410673,0.00019178,2]
[376570630,1754028163617,-465.21789101,0.00019178,2]
[376570631,1754028163640,-460.0,0.00019178,2]
[376570632,1754028163662,-462.39446,0.00019178,2]
[376570633,1754028163690,-460.0,0.00019178,2]
[376570634,1754028163713,-460.0,0.00019178,2]
[376570635,1754028163735,-469.69646902,0.00019178,2]
[376570636,1754028163758,-460.0,0.00019178,2]
[376570637,1754028163783,-460.0,0.00019178,2]
[376570638,1754028163806,-460.0,0.00019178,2]
[376570639,1754028163827,-464.52430789,0.00019178,2]
[376570640,1754028163849,-460.0,0.00019178,2]
[376570641,1754028163871,-460.0,0.00019178,2]
[376570642,1754028163893,-460.0,0.00019178,2]
[376570643,1754028163915,-467.67599692,0.00019178,2]
[376570644,1754028163937,-460.0,0.00019178,2]
[376570645,1754028163960,-460.0,0.00019178,2]
[376570646,1754028163982,-464.46800842,0.00019178,2]
[376570647,1754028164005,-460.0,0.00019178,2]
[376570648,1754028164029,-462.13656083,0.00019178,2]
[376570649,1754028164051,-460.0,0.00019178,2]
[376570650,1754028164073,-460.0,0.00019178,2]
[376570651,1754028164095,-461.84691379,0.00019178,2]
[376570652,1754028164116,-460.0,0.00019178,2]
[376570653,1754028164138,-328.51705012,0.00019178,2]
[376570654,1754028164159,-460.0,0.00019178,2]
[376570655,1754028164183,-460.0,0.00019178,2]
[376570656,1754028164204,-1009.76781044,0.00019178,2]
[376570657,1754028164225,-462.60337648,0.00019178,2]
[376570658,1754028164247,-463.79576961,0.00019178,2]
[376570659,1754028164268,-460.0,0.00019178,2]
[376570660,1754028164291,-460.0,0.00019178,2]